bitfinex/quotes_ETHUSD_20250130
["timestamp","ask_amount","ask_price","bid_price","bid_amount"]
[1738227710226,0.005,3213.4,3213.3,10.79904685]
[1738227710424,0.005,3213.4,3213.3,10.53474097]
[1738227711401,0.005,3213.4,3213.3,10.76370193]
[1738227711903,0.005,3213.4,3213.3,7.80652508]
[1738227712095,3.11138,3214.0,3213.6,0.0075]
[1738227712296,3.11135,3214.1,3213.7,0.311936]
[1738227712499,3.1114,3214.0,3213.7,0.311936]
[1738227712823,0.7847,3214.3,3213.5,0.0075]
[1738227712824,3.89583,3214.3,3213.5,0.0075]
[1738227713024,3.11128,3214.2,3213.5,3.11929]
[1738227713327,3.11128,3214.2,3213.5,3.34825096]
[1738227713487,3.1113,3214.1,3213.5,3.63394508]
[1738227713688,3.11177,3213.6,3213.5,0.51465508]
[1738227714794,3.1126,3213.8,3212.9,0.761]
[1738227714996,3.11213,3213.3,3212.9,0.761]
[1738227716136,3.11226,3213.1,3212.9,0.761]
[1738227716932,3.11226,3213.1,3212.6,0.7635]
[1738227717142,3.1124,3213.0,3212.6,0.7635]
[1738227717545,3.1124,3213.0,3212.5,0.0075]
[1738227717845,3.11226,3213.1,3212.7,0.3118]
[1738227718051,3.11226,3213.1,3212.5,0.702295]
[1738227718261,3.1124,3213.0,3212.5,0.702295]
[1738227718809,3.1124,3213.0,3212.6,0.3118]
[1738227719248,0.7655,3213.4,3212.5,0.694795]
[1738227719249,3.11265,3212.7,3212.5,0.694795]
[1738227719417,3.11314,3212.2,3211.9,0.761]
[1738227719650,3.11294,3212.4,3211.9,0.761]
[1738227720377,3.11294,3212.4,3212.0,0.387451]
[1738227720884,0.8223,3212.7,3212.0,0.387451]
[1738227721080,3.1133,3212.1,3211.8,0.2271595]
[1738227721795,3.11319,3212.2,3211.8,0.2271595]
[1738227722680,3.11319,3212.2,3211.7,0.2271595]
[1738227722681,3.11334,3212.0,3211.7,0.2271595]
[1738227722885,3.11319,3212.2,3211.7,0.2271595]
[1738227723052,6.22595,3212.4,3211.8,0.41231695]
[1738227723257,3.11305,3212.3,3211.8,0.41231695]
[1738227723568,3.11275,3212.6,3212.0,3.11326]
[1738227723763,3.11275,3212.6,3211.9,3.1209]
[1738227723969,3.89579,3213.0,3211.8,0.41231695]
[1738227723970,3.11311,3212.3,3211.8,0.41231695]
[1738227724756,3.11311,3212.3,3211.7,3.11361]
[1738227724996,3.11315,3212.2,3211.7,3.11361]
[1738227725182,3.11311,3212.3,3211.6,0.0075]
[1738227725183,3.11327,3212.1,3211.6,0.0075]
[1738227725382,0.8191,3212.4,3211.4,0.228]
[1738227725571,3.11348,3211.9,3211.3,3.91818]
[1738227725759,3.11348,3211.9,3211.4,0.391818]
[1738227726199,0.8191,3212.4,3211.4,0.391818]
[1738227726398,3.11303,3212.3,3211.7,3.11359]
[1738227726899,3.11319,3212.2,3211.7,3.11359]
[1738227727299,3.11259,3212.8,3211.5,3.1213]
[1738227727300,0.8315,3212.8,3212.2,0.0075]
[1738227727504,3.11241,3213.0,3212.4,3.11292]
[1738227727703,0.8315,3213.1,3212.1,0.8117]
[1738227727902,3.11235,3213.0,3212.4,3.11285]
[1738227728094,3.11226,3213.1,3212.5,0.311285]
[1738227728314,3.11226,3213.1,3212.1,0.8117]
[1738227728315,0.7538,3213.4,3212.1,0.8117]
[1738227728620,0.7538,3213.4,3212.8,3.11249]
[1738227728621,3.11199,3213.4,3212.8,3.11249]
[1738227728821,3.11199,3213.4,3212.3,3.91073]
[1738227728822,3.11199,3213.4,3212.9,3.11245]
[1738227729031,3.11199,3213.4,3212.8,3.11253]
[1738227729529,3.11241,3213.0,3212.4,3.34488]
[1738227729687,3.11241,3213.0,3212.4,3.78188387]
[1738227730430,3.11241,3213.0,3212.4,3.54988387]
[1738227730743,3.11248,3212.9,3212.4,3.54988387]
[1738227730887,3.11241,3213.0,3212.4,3.54988387]
[1738227731087,3.11264,3212.8,3212.4,0.43700387]
[1738227731344,3.11264,3212.8,3212.5,0.2274587]
[1738227732328,6.22481,3213.0,3212.5,0.2274587]
[1738227732624,3.11255,3212.8,3212.5,0.2274587]
[1738227732801,6.22481,3213.0,3212.5,0.2274587]
[1738227733201,3.11239,3213.0,3212.5,0.2274587]
[1738227733425,3.11239,3213.0,3212.5,3.49055426]
[1738227733634,3.1122,3213.2,3212.6,3.11265]
[1738227734129,3.11227,3213.1,3212.6,3.11265]
[1738227734777,0.55,3213.3,3212.5,0.37773426]
[1738227734927,3.1125,3212.9,3212.4,0.2274587]
[1738227735124,3.1125,3212.9,3212.4,3.11289]
[1738227735448,3.11313,3212.2,3211.9,0.3118]
[1738227736761,0.7891,3212.4,3211.9,0.3118]
[1738227737064,3.1133,3212.1,3211.8,1.07262119]
[1738227737281,3.1133,3212.1,3211.8,0.30512119]
[1738227737970,3.11317,3212.2,3211.9,0.22805164]
[1738227738134,3.11329,3212.1,3211.9,0.22805164]
[1738227738483,3.11317,3212.2,3211.9,0.22805164]
[1738227739290,3.11317,3212.2,3211.6,3.42551]
[1738227739431,3.11317,3212.2,3211.7,0.67715616]
[1738227740560,3.11317,3212.2,3211.7,0.9052078]
[1738227740879,7.01506,3212.4,3211.8,3.11349]
[1738227741300,3.11257,3212.8,3212.0,3.11325]
[1738227741458,3.11273,3212.7,3212.1,3.11322]
[1738227741645,3.11264,3212.8,3212.2,0.390882]
[1738227741850,3.11265,3212.7,3212.2,0.390882]
[1738227742495,3.11274,3212.6,3212.2,0.390882]
[1738227742702,3.11305,3212.3,3211.8,0.53985164]
[1738227743016,3.11305,3212.3,3211.8,3.65334164]
[1738227743609,3.11305,3212.3,3211.9,0.22805164]
[1738227743815,3.11305,3212.3,3211.9,0.6734858]
[1738227744815,3.11324,3212.1,3211.9,0.22805164]
[1738227745406,3.9226,3212.2,3211.5,3.11373]
[1738227745613,3.9226,3212.2,3211.6,3.1137]
[1738227745779,3.9226,3212.2,3211.7,0.3118]
[1738227746183,3.11328,3212.1,3211.7,0.3118]
[1738227746414,3.9226,3212.2,3211.7,0.3118]
[1738227746772,3.9226,3212.2,3211.8,0.22875749]
[1738227746974,3.11334,3212.0,3211.8,0.22875749]
[1738227748817,3.11334,3212.0,3211.9,0.22875749]
[1738227749318,3.11334,3212.0,3211.9,0.54055749]
[1738227749613,3.11334,3212.0,3211.9,0.22875749]
[1738227750190,3.11334,3212.0,3211.4,0.8096]
[1738227750391,3.11352,3211.8,3211.4,1.201963]
[1738227751591,3.11368,3211.7,3211.4,1.201963]
[1738227751790,3.11368,3211.7,3211.1,3.43344]
[1738227751791,3.11375,3211.6,3211.5,0.22888556]
[1738227752350,3.11352,3211.8,3211.5,0.22888556]
[1738227753208,6.22711,3211.8,3211.5,0.22888556]
[1738227753410,3.11361,3211.7,3211.6,0.22888556]
[1738227756162,3.91821,3211.7,3211.6,0.22888556]
[1738227756335,4.621383,3211.7,3211.6,0.22888556]
[1738227757354,3.91821,3211.7,3211.6,0.22888556]
[1738227758163,3.91821,3211.7,3211.0,1.0969]
[1738227758164,3.11396,3211.4,3211.1,0.22888556]
[1738227758923,6.22795,3211.4,3211.1,0.22888556]
[1738227759124,6.22794,3211.4,3211.1,0.22888556]
[1738227759324,3.114,3211.3,3211.2,0.3118]
[1738227759653,3.114,3211.3,3211.2,0.54068556]
[1738227760049,7.518796,3211.3,3211.2,0.22888556]
[1738227760376,8.068796,3211.3,3211.2,0.22888556]
[1738227761285,8.068796,3211.3,3210.3,0.3118]
[1738227761451,3.11487,3210.4,3210.2,0.22888556]
[1738227761657,3.11497,3210.3,3210.2,0.22888556]
[1738227762053,8.134734,3210.3,3210.2,0.22888556]
[1738227762588,3.88537,3210.3,3210.2,0.22888556]
[1738227763089,7.43537,3210.3,3210.2,0.22888556]
[1738227763591,3.11555,3209.7,3209.6,0.22888556]
[1738227763953,3.89095,3209.7,3209.6,0.22888556]
[1738227765488,3.11604,3209.2,3209.1,0.28589535]
[1738227766789,3.11604,3209.2,3209.0,0.22888556]
[1738227766961,3.11613,3209.1,3209.0,0.22888556]
[1738227767154,3.11613,3209.1,3208.7,0.28589535]
[1738227767155,3.1164,3208.9,3208.7,0.51478091]
[1738227767585,2.66602,3208.8,3208.7,0.51478091]
[1738227768364,2.66602,3208.8,3208.7,0.22888556]
[1738227768564,3.1167,3208.6,3208.4,0.51478091]
[1738227768777,3.11659,3208.7,3208.4,0.51478091]
[1738227769780,3.90895,3209.0,3208.4,3.63157091]
[1738227769983,3.11662,3208.6,3208.5,0.67484109]
[1738227770288,3.11672,3208.5,3208.2,0.51478091]
[1738227770603,3.11691,3208.3,3208.2,0.51478091]
[1738227770966,3.92851,3208.3,3208.2,0.51478091]
[1738227771360,3.11672,3208.5,3208.2,0.51478091]
[1738227771907,3.11654,3208.7,3208.3,0.7704]
[1738227772102,3.11664,3208.6,3208.2,0.51478091]
[1738227772311,3.11664,3208.6,3208.0,3.8673]
[1738227772527,3.11664,3208.6,3208.1,0.59608022]
[1738227773723,3.11654,3208.7,3208.0,3.8673]
[1738227774023,3.11661,3208.7,3208.0,3.8673]
[1738227774216,3.11661,3208.7,3208.1,0.28589535]
[1738227775227,3.11662,3208.6,3208.1,0.28589535]
[1738227775430,3.11662,3208.6,3208.2,0.28589535]
[1738227776833,3.11637,3208.9,3208.3,3.11689]
[1738227777325,3.11625,3209.0,3208.4,3.88435]
[1738227781285,3.11615,3209.1,3208.4,3.88435]
[1738227781453,3.11633,3208.9,3208.4,3.88435]
[1738227782484,3.11662,3208.6,3208.5,0.22775853]
[1738227782640,4.191482,3208.6,3208.5,0.22775853]
[1738227783155,3.87982,3208.6,3208.5,0.22775853]
[1738227783387,3.11662,3208.6,3208.5,0.22775853]
[1738227784275,3.11627,3209.0,3208.6,0.7793]
[1738227784848,3.11634,3208.9,3208.6,0.7793]
[1738227786393,3.11634,3208.9,3208.7,0.22775853]
[1738227787792,3.11634,3208.9,3208.8,0.22775853]
[1738227792592,2.41482734,3208.9,3208.8,0.22775853]
[1738227793898,0.8033,3209.4,3208.8,0.22775853]
[1738227794084,1.247408,3209.8,3208.8,0.22775853]
[1738227794085,3.11576,3209.5,3208.8,3.34410853]
[1738227794284,0.8148,3209.7,3208.8,3.34410853]
[1738227794285,3.11566,3209.6,3208.9,4.28107085]
[1738227794595,3.11561,3209.7,3209.1,3.11612]
[1738227794796,3.11561,3209.7,3209.1,3.11606]
[1738227794989,6.23124,3209.7,3209.1,3.11606]
[1738227795293,0.61393306,3209.8,3209.3,3.11588]
[1738227795494,0.61393306,3209.8,3209.4,0.393358]
[1738227795700,3.1154,3209.9,3209.4,3.509188]
[1738227795869,3.1152,3210.1,3209.5,3.11573]
[1738227796074,3.1152,3210.1,3209.7,0.8177]
[1738227796860,3.115,3210.3,3209.7,3.93317]
[1738227797211,3.11467,3210.7,3209.8,3.76446285]
[1738227797375,3.11479,3210.5,3209.9,3.11533]
[1738227798680,0.62478368,3210.9,3210.0,3.11525]
[1738227798885,3.11444,3210.9,3210.2,3.11497]
[1738227799208,3.11444,3210.9,3210.3,3.11496]
[1738227799209,3.11446,3210.9,3210.3,3.11496]
[1738227799368,3.11427,3211.1,3210.5,0.7846]
[1738227800099,3.86503,3211.5,3210.5,0.7846]
[1738227800100,3.11404,3211.3,3210.5,0.7846]
[1738227800412,1.456991,3211.8,3210.8,3.11442]
[1738227800709,3.114,3211.3,3210.8,3.11442]
[1738227800905,3.114,3211.3,3210.7,3.11456]
[1738227801072,3.114,3211.3,3210.7,3.816689]
[1738227801267,3.114,3211.3,3210.9,0.22775853]
[1738227801473,3.11429,3211.0,3210.9,0.22775853]
[1738227801673,6.22836,3211.2,3210.9,0.22775853]
[1738227801874,3.11418,3211.2,3210.9,0.22775853]
[1738227802215,3.11395,3211.4,3210.9,0.22775853]
[1738227802459,3.11404,3211.3,3210.9,0.22775853]
[1738227803009,3.11404,3211.3,3210.7,3.11449]
[1738227803210,3.11404,3211.3,3210.7,3.86194985]
[1738227803429,3.11412,3211.2,3210.7,3.86194985]
[1738227803709,3.11401,3211.3,3210.7,3.86194985]
[1738227804513,3.11395,3211.4,3210.8,3.11446]
[1738227804812,3.11395,3211.4,3210.8,1.02725853]
[1738227805019,3.11395,3211.4,3210.9,3.60329084]
[1738227805836,3.11395,3211.4,3210.9,0.48892084]
[1738227806328,3.11371,3211.6,3210.9,0.48892084]
[1738227806551,0.55,3211.7,3210.8,0.7995]
[1738227806552,3.11406,3211.3,3210.8,0.7995]
[1738227806709,3.11416,3211.2,3210.8,0.7995]
[1738227809639,3.11425,3211.1,3210.8,0.7995]
[1738227809930,3.11425,3211.1,3210.6,0.7701]
[1738227811588,3.11398,3211.4,3210.6,1.470054]
[1738227811767,3.11376,3211.6,3210.6,0.7701]
[1738227811923,3.11376,3211.6,3210.9,3.11431]
[1738227812126,3.11396,3211.4,3210.8,3.11448]
[1738227812442,3.11396,3211.4,3210.6,0.7701]
[1738227812443,0.55,3211.7,3210.6,0.7701]
[1738227812638,3.1142,3211.1,3210.6,0.7701]
[1738227812848,3.11432,3211.0,3210.6,1.181583]
[1738227813030,3.11454,3210.8,3210.6,0.7701]
[1738227813382,3.11454,3210.8,3210.3,3.11492]
[1738227813569,3.11454,3210.8,3210.4,0.7658]
[1738227814557,0.55,3210.9,3209.9,4.19288]
[1738227814756,0.861432,3210.9,3209.9,4.19288]
[1738227815066,3.11483,3210.5,3210.0,3.11524]
[1738227815272,3.11483,3210.5,3210.1,0.3118]
[1738227815857,3.11498,3210.3,3210.1,0.3118]
[1738227816261,3.11498,3210.3,3210.0,0.3118]
[1738227817265,3.11498,3210.3,3209.9,0.3118]
[1738227818864,3.11498,3210.3,3209.8,3.53154285]
[1738227819106,3.11498,3210.3,3209.9,0.3118]
[1738227819270,3.11548,3209.8,3209.3,0.8084]
[1738227819600,3.11565,3209.6,3209.3,0.8084]
[1738227819801,3.11469,3210.6,3209.8,3.11539]
[1738227819962,3.11471,3210.6,3210.0,3.1152]
[1738227820304,3.88194,3210.7,3210.0,3.1152]
[1738227820500,3.88194,3210.7,3210.0,3.816802]
[1738227820691,3.88194,3210.7,3210.0,6.932002]
[1738227820860,3.11454,3210.8,3210.0,0.701602]
[1738227821059,6.11404,3211.3,3210.0,0.701602]
[1738227821060,3.11414,3211.2,3210.6,3.11465]
[1738227822219,3.11424,3211.1,3210.6,3.11465]
[1738227822593,3.11414,3211.2,3210.6,3.11465]
[1738227822981,3.11421,3211.1,3210.6,3.11465]
[1738227823217,3.11421,3211.1,3210.4,7.03115]
[1738227823520,3.11434,3211.0,3210.4,4.619415]
[1738227823701,3.11414,3211.2,3210.4,4.619415]
[1738227823911,3.11414,3211.2,3210.6,3.1146]
[1738227825319,3.11414,3211.2,3210.7,0.2291134]
[1738227825519,6.22833,3211.2,3210.7,0.2291134]
[1738227825684,3.11422,3211.1,3210.7,0.2291134]
[1738227825876,3.11435,3211.0,3210.7,0.2291134]
[1738227826515,3.11435,3211.0,3210.8,0.2291134]
[1738227828284,3.66435,3211.0,3210.9,0.2291134]
[1738227828923,4.43885,3211.0,3210.9,0.2291134]
[1738227829900,3.11458,3210.7,3210.6,0.0496]
[1738227831944,4.287486,3210.7,3210.6,0.0496]
[1738227832447,4.287486,3210.7,3210.6,0.27916742]
[1738227833608,4.287486,3210.7,3210.6,0.0496]
[1738227835142,8.047486,3210.7,3210.6,0.0496]
[1738227835633,8.039986,3210.7,3210.6,0.0496]
[1738227842705,8.047486,3210.7,3210.6,0.0496]
[1738227843582,3.11536,3209.9,3209.8,0.22981738]
[1738227843738,7.780196,3209.9,3209.3,0.3034615]
[1738227843966,6.66584,3209.4,3209.3,0.3034615]
[1738227844131,6.11584,3209.4,3209.3,0.3034615]
[1738227844645,6.11584,3209.4,3209.1,0.47863142]
[1738227844646,3.11596,3209.3,3209.1,0.47863142]
[1738227845229,3.11604,3209.2,3209.1,0.47863142]
[1738227845779,3.11623,3209.0,3208.9,1.1445]
[1738227845942,3.11623,3209.0,3208.9,0.8327]
[1738227846146,3.11604,3209.2,3208.5,1.27523142]
[1738227846147,3.11662,3208.6,3208.5,1.27523142]
[1738227846378,3.11662,3208.6,3208.5,0.47863142]
[1738227847241,3.11681,3208.4,3208.3,0.3034615]
[1738227847630,3.11681,3208.4,3208.2,0.7966]
[1738227847840,3.11691,3208.3,3208.2,0.7966]
[1738227848237,3.11715,3208.1,3207.8,0.7524]
[1738227848436,3.11715,3208.1,3207.8,1.20584929]
[1738227848437,3.11726,3208.0,3207.8,1.20584929]
[1738227848933,3.11695,3208.3,3207.9,0.3118]
[1738227849144,3.1172,3208.0,3207.9,0.3118]
[1738227849372,3.1172,3208.0,3207.8,0.7524]
[1738227849373,3.11708,3208.2,3207.8,0.7524]
[1738227849579,3.11708,3208.2,3207.8,1.12764]
[1738227850377,3.11716,3208.1,3207.8,1.12764]
[1738227850674,3.11723,3208.0,3207.8,0.7524]
[1738227851173,3.1173,3207.9,3207.8,0.7524]
[1738227851493,3.11754,3207.7,3207.5,0.8293]
[1738227851975,3.92689,3208.3,3207.5,0.8293]
[1738227851976,3.11735,3207.9,3207.5,0.8293]
[1738227852186,3.11742,3207.8,3207.5,0.8293]
[1738227852693,3.11735,3207.9,3207.5,0.8293]
[1738227852836,3.11735,3207.9,3207.5,1.224017]
[1738227853437,3.11741,3207.8,3207.5,1.224017]
[1738227853638,3.11752,3207.7,3207.5,0.8293]
[1738227854044,3.11759,3207.6,3207.5,0.8293]
[1738227854245,3.11798,3207.2,3207.1,0.005]
[1738227855910,1.080236,3209.9,3208.3,0.0075]
[1738227856215,1.38638933,3209.7,3208.3,0.7559]
[1738227856594,3.1171,3208.1,3207.6,0.7942]
[1738227856794,3.11749,3207.7,3207.6,0.7942]
[1738227857039,3.11739,3207.9,3207.6,0.7942]
[1738227857235,3.11749,3207.8,3207.6,0.7942]
[1738227857397,3.11739,3207.9,3207.6,0.7942]
[1738227857605,3.429079,3207.9,3207.2,0.7897]
[1738227857852,3.11745,3207.8,3207.2,3.90768]
[1738227858729,3.11748,3207.8,3207.2,0.7897]
[1738227858934,3.11748,3207.8,3207.2,3.90766]
[1738227859350,3.1175,3207.7,3207.2,3.90766]
[1738227860025,3.11737,3207.9,3207.2,3.90766]
[1738227861556,3.11724,3208.0,3207.2,3.90766]
[1738227861557,3.11743,3207.8,3207.2,3.90766]
[1738227862354,3.1177,3207.5,3207.2,0.7897]
[1738227862504,3.1177,3207.5,3207.1,0.005]
[1738227862505,3.66798,3207.2,3207.1,0.005]
[1738227862702,4.44958,3207.2,3207.1,0.005]
[1738227862940,7.44958,3207.2,3207.1,0.005]
[1738227863834,6.11798,3207.2,3207.1,0.005]
[1738227864360,7.58778007,3207.2,3207.1,0.005]
[1738227864818,8.35548007,3207.2,3207.1,0.005]
[1738227865532,8.36298007,3207.2,3207.1,0.005]
[1738227866147,8.35548007,3207.2,3207.1,0.005]
[1738227866669,8.36298007,3207.2,3207.1,0.005]
[1738227867512,8.35548007,3207.2,3207.1,0.005]
[1738227867753,8.36298007,3207.2,3207.1,0.005]
[1738227868750,8.35548007,3207.2,3207.1,0.005]
[1738227870353,8.36298007,3207.2,3207.1,0.005]
[1738227872669,8.37048007,3207.2,3207.1,0.005]
[1738227873568,8.36298007,3207.2,3207.1,0.005]
[1738227875370,7.80548007,3207.2,3207.1,0.005]
[1738227875735,8.35548007,3207.2,3207.1,0.005]
[1738227875963,4.58778007,3207.2,3207.1,0.005]
[1738227876139,4.58246107,3207.2,3207.1,0.005]
[1738227876336,3.662661,3207.2,3207.1,0.005]
[1738227876685,6.662661,3207.2,3207.1,0.005]
[1738227877942,6.112661,3207.2,3207.1,0.005]
[1738227878493,6.662661,3207.2,3207.1,0.005]
[1738227878999,2.36245009,3207.2,3207.1,0.005]
[1738227879160,3.66798,3207.2,3207.1,0.005]
[1738227879939,4.45678,3207.2,3207.1,0.005]
[1738227880654,3.11895,3206.2,3206.1,0.7961]
[1738227880836,4.45678,3207.2,3205.8,0.36694622]
[1738227880837,3.11924,3205.9,3205.8,0.36694622]
[1738227881871,3.11914,3206.1,3205.7,0.47863142]
[1738227882038,6.23827,3206.1,3205.5,3.34933235]
[1738227882234,3.11913,3206.1,3205.5,3.34933235]
[1738227882478,6.23827,3206.1,3205.5,3.34933235]
[1738227882679,3.11915,3206.0,3205.6,0.41730324]
[1738227883492,3.11927,3205.9,3205.6,0.22976235]
[1738227884369,3.11944,3205.7,3205.6,0.22976235]
[1738227886078,3.11944,3205.7,3205.5,0.22976235]
[1738227886257,3.11954,3205.6,3205.5,0.22976235]
[1738227888701,3.11954,3205.6,3205.1,4.73765142]
[1738227888909,3.11954,3205.6,3205.2,0.47376514]
[1738227889880,3.11954,3205.6,3205.3,0.59841889]
[1738227890284,3.11934,3205.8,3205.3,0.59841889]
[1738227890483,3.11946,3205.7,3205.3,0.59841889]
[1738227891317,3.11946,3205.7,3205.4,0.23016111]
[1738227892634,3.11946,3205.7,3205.5,0.23016111]
[1738227893883,3.11937,3205.8,3205.6,0.7512]
[1738227894070,3.11944,3205.7,3205.6,0.7512]
[1738227894810,3.11944,3205.7,3205.5,0.23016111]
[1738227895011,3.11954,3205.6,3205.3,1.23343142]
[1738227895319,3.1197,3205.5,3205.3,1.23343142]
[1738227895674,3.1197,3205.5,3205.3,0.7548]
[1738227896088,3.11958,3205.6,3205.3,0.7548]
[1738227896510,3.11958,3205.6,3205.4,0.59986706]
[1738227897327,6.23919,3205.6,3205.4,0.59986706]
[1738227897485,3.11958,3205.6,3205.4,0.59986706]
[1738227898385,3.11958,3205.6,3205.5,0.59986706]
[1738227899722,0.786,3206.2,3205.5,0.59986706]
[1738227900026,6.11924,3206.0,3205.5,1.40286706]
[1738227900207,3.11927,3205.9,3205.6,0.45225771]
[1738227900599,3.11927,3205.9,3205.5,1.0337181]
[1738227900600,3.11944,3205.7,3205.5,1.0337181]
[1738227900801,3.11927,3205.9,3205.5,1.0337181]
[1738227900802,3.11926,3205.9,3205.5,1.0337181]
[1738227901425,3.11934,3205.8,3205.5,1.0337181]
[1738227901992,3.11911,3206.1,3205.5,1.0337181]
[1738227901993,3.11954,3205.6,3205.5,0.2307181]
[1738227902410,3.11968,3205.5,3205.2,0.47863142]
[1738227902999,3.11944,3205.7,3205.2,0.95023556]
[1738227903328,3.11955,3205.6,3205.2,0.47160414]
[1738227904023,3.11955,3205.6,3205.3,0.60030231]
[1738227905923,3.11955,3205.6,3205.4,0.69274155]
[1738227906438,6.23878,3205.8,3205.4,0.69274155]
[1738227906620,3.11947,3205.7,3205.4,0.69274155]
[1738227907130,3.11963,3205.5,3205.4,0.69274155]
[1738227907526,3.11954,3205.6,3205.2,0.36941681]
[1738227907731,3.11977,3205.4,3205.2,0.36941681]
[1738227908031,3.11983,3205.3,3205.2,0.36941681]
[1738227908802,3.11983,3205.3,3204.9,0.312]
[1738227908803,3.11983,3205.3,3204.9,0.68141681]
[1738227909015,3.12002,3205.1,3204.9,0.68141681]
[1738227909895,3.11987,3205.3,3204.9,0.68141681]
[1738227910096,0.806,3206.0,3205.2,0.312]
[1738227910296,3.11961,3205.6,3205.4,0.312]
[1738227910731,3.11963,3205.5,3205.4,0.312]
[1738227911191,3.11961,3205.6,3205.2,0.312]
[1738227911549,3.11938,3205.8,3205.2,3.43185]
[1738227911760,3.11938,3205.8,3205.4,0.312]
[1738227912197,3.11938,3205.8,3205.4,0.77495619]
[1738227912535,3.11955,3205.6,3205.4,0.77495619]
[1738227913136,3.11963,3205.5,3205.4,0.77495619]
[1738227913635,3.11963,3205.5,3205.4,0.312]
[1738227913939,3.93603,3205.5,3205.4,0.312]
[1738227914305,3.11989,3205.3,3205.1,0.94159633]
[1738227914510,3.11993,3205.2,3205.1,1.25359633]
[1738227914744,3.11993,3205.2,3205.1,0.77496491]
[1738227915920,3.11973,3205.4,3205.2,0.312]
[1738227916220,3.1196,3205.6,3205.2,0.312]
[1738227916221,3.11965,3205.5,3205.2,0.312]
[1738227916952,3.11965,3205.5,3205.3,0.77509388]
[1738227917453,3.11955,3205.6,3205.3,1.06521959]
[1738227917813,6.23915,3205.6,3205.3,1.06521959]
[1738227918015,3.11968,3205.5,3205.3,1.06521959]
[1738227918212,7.47003,3205.4,3205.3,9.59e-06]
[1738227918467,7.47003,3205.4,3204.8,0.47863142]
[1738227918468,0.0075,3205.1,3204.8,0.47863142]
[1738227918643,7.42932,3204.9,3204.8,0.47863142]
[1738227918955,7.41581149,3204.8,3204.7,0.11256887]
[1738227919513,3.12094,3204.2,3203.8,0.8138]
[1738227920258,3.12111,3204.0,3203.8,0.8138]
[1738227921014,3.1208,3204.4,3203.8,0.8138]
[1738227921254,3.1208,3204.4,3203.8,4.328573]
[1738227921550,3.12086,3204.3,3203.8,1.207313]
[1738227921752,3.12079,3204.4,3203.8,4.328563]
[1738227922272,3.1208,3204.3,3203.8,4.328563]
[1738227923659,3.1208,3204.3,3203.8,1.207313]
[1738227923952,3.12062,3204.5,3203.9,0.4328633]
[1738227924149,3.12072,3204.4,3203.8,0.8138]
[1738227924352,3.1206,3204.6,3204.2,0.7549]
[1738227924523,3.12037,3204.8,3204.2,3.87578]
[1738227924722,3.12047,3204.7,3204.2,0.7549]
[1738227924943,3.12047,3204.7,3204.2,3.87579]
[1738227925147,3.12047,3204.7,3204.2,4.575486]
[1738227926070,3.12029,3204.9,3204.4,0.7658]
[1738227926222,3.12048,3204.7,3204.4,0.7658]
[1738227926627,3.12029,3204.9,3204.4,0.7658]
[1738227926628,6.24059,3204.9,3204.4,0.7658]
[1738227926843,0.7665,3205.5,3204.5,0.803]
[1738227927054,3.12037,3204.8,3204.5,0.803]
[1738227927241,3.12072,3204.4,3204.2,0.7948]
[1738227928067,3.12052,3204.6,3204.2,0.7948]
[1738227928364,3.12062,3204.5,3204.2,0.7948]
[1738227929628,3.1207,3204.4,3203.9,1.13508198]
[1738227929828,3.12092,3204.2,3203.9,0.827]
[1738227930028,3.12092,3204.2,3203.7,0.827]
[1738227930249,3.12092,3204.2,3203.7,3.94838]
[1738227930697,3.12073,3204.4,3203.8,3.12127]
[1738227930969,3.1208,3204.4,3203.8,3.12127]
[1738227931194,3.12081,3204.3,3203.8,3.12127]
[1738227931579,3.12077,3204.4,3203.9,3.35222936]
[1738227931906,3.12094,3204.2,3203.9,0.23109936]
[1738227932805,3.12109,3204.0,3203.9,0.23109936]
[1738227933466,3.12119,3203.9,3203.8,0.23109936]
[1738227935307,3.0,3204.1,3203.4,0.23109936]
[1738227935493,3.12158,3203.5,3203.4,0.23109936]
[1738227936632,3.12173,3203.4,3203.2,0.1669665]
[1738227937614,3.12178,3203.3,3203.2,0.1669665]
[1738227939999,3.59519807,3203.3,3203.2,0.1669665]
[1738227955452,3.12168,3203.4,3203.2,0.1669665]
[1738227956154,3.88843,3203.6,3203.2,0.1669665]
[1738227956353,3.0,3203.7,3203.2,0.1669665]
[1738227956594,3.0,3203.7,3203.2,3.2887865]
[1738227957091,6.12139,3203.7,3203.2,3.2887865]
[1738227957989,6.12139,3203.7,3203.3,0.23149229]
[1738227958194,7.04048607,3203.7,3203.3,0.23149229]
[1738227958696,3.12151,3203.6,3203.3,0.23149229]
[1738227960162,3.12151,3203.6,3203.4,0.23149229]
[1738227960638,3.1213,3203.8,3203.4,0.23149229]
[1738227960874,0.61656393,3204.0,3203.6,3.12148]
[1738227961330,3.73771393,3204.0,3203.5,0.7748]
[1738227962447,3.12139,3203.7,3203.6,0.60268806]
[1738227964044,6.12139,3203.7,3203.3,0.37119577]
[1738227964186,3.12168,3203.4,3203.3,0.37119577]
[1738227965547,3.12168,3203.4,3203.3,0.23229312]
[1738227966328,3.89798,3203.4,3203.3,0.23229312]
[1738227966534,4.599936,3203.4,3203.3,0.23229312]
[1738227968835,5.157436,3203.4,3203.3,0.23229312]
[1738227969139,8.157436,3203.4,3203.3,0.23229312]
[1738227969798,8.164936,3203.4,3203.3,0.23229312]
[1738227969995,4.49748,3203.3,3203.2,0.1669665]
[1738227970196,5.33879107,3203.3,3203.2,0.1669665]
[1738227970831,8.33879107,3203.3,3203.2,0.1669665]
[1738227971234,8.34629107,3203.3,3203.2,6.5e-06]
[1738227972200,7.78879107,3203.3,3203.2,6.5e-06]
[1738227972399,7.78129107,3203.3,3203.2,6.5e-06]